fUSD/lending_fUSD_20240118
["ID","MTS","AMOUNT","RATE_DAILY","PERIOD"]
[312029888,1705561847418,-500.0,0.00022179,2]
[312029889,1705561847427,-500.0,0.00022179,2]
[312029890,1705561847437,-500.0,0.00022179,2]
[312029891,1705561847449,-500.0,0.00022179,2]
[312029892,1705561847459,-1119.97,0.00022179,2]
[312029893,1705561847468,-500.0,0.00022179,2]
[312029894,1705561847478,-500.0,0.00022179,2]
[312029895,1705561847487,-514.79473233,0.00022179,2]
[312029896,1705561847497,-218.82,0.00022179,2]
[312029897,1705561847506,-825.55,0.00022179,2]
[312029898,1705561847516,-503.07092332,0.00022179,2]
[312029899,1705561847526,-250.0,0.00022179,2]
[312029900,1705561847535,-500.0,0.00022179,2]
[312029901,1705561847545,-500.0,0.00022179,2]
[312029902,1705561847555,-500.0,0.00022179,2]
[312029903,1705561847564,-500.0,0.00022179,2]
[312029904,1705561847574,-170.24,0.00022179,2]
[312029905,1705561847583,-500.0,0.00022179,2]
[312029906,1705561847593,-640.0,0.00022179,2]
[312029907,1705561847602,-550.56,0.00022179,2]
[312029908,1705561847668,-503.92277985,0.00022179,2]
[312029909,1705561847677,-500.0,0.00022179,2]
[312029910,1705561847687,-500.0,0.00022179,2]
[312029911,1705561847697,-500.0,0.00022179,2]
[312029912,1705561847707,-500.0,0.00022179,2]
[312029913,1705561847716,-500.0,0.00022179,2]
[312029914,1705561847726,-500.0,0.00022179,2]
[312029915,1705561847735,-500.0,0.00022179,2]
[312029916,1705561847744,-389.26611825,0.00022179,2]
[312029917,1705561847754,-500.0,0.00022179,2]
[312029918,1705561847763,-500.0,0.00022179,2]
[312029919,1705561847773,-500.0,0.00022179,2]
[312029920,1705561847782,-500.0,0.00022179,2]
[312029921,1705561847791,-500.0,0.00022179,2]
[312029922,1705561847800,-500.0,0.00022179,2]
[312029923,1705561847809,-576.89021943,0.00022179,2]
[312029924,1705561847819,-556.07,0.00022179,2]
[312029925,1705561847828,-500.0,0.00022179,2]
[312029926,1705561847838,-500.0,0.0002218,2]
[312029927,1705561847847,-500.0,0.0002218,2]
[312029928,1705561847856,-500.0,0.0002218,2]
[312029929,1705561847866,-500.0,0.0002218,2]
[312029930,1705561847875,-500.0,0.0002218,2]
[312029931,1705561847885,-954.55,0.0002218,2]
[312029932,1705561847894,-925.8,0.0002218,2]
[312029933,1705561847903,-1538.37,0.0002218,2]
[312029934,1705561847912,-821.42,0.0002218,2]
[312029935,1705561847922,-2341.17,0.0002218,2]
[312029936,1705561847931,-566.38,0.0002218,2]
[312029937,1705561847940,-386.63291181,0.0002218,2]
[312029938,1705561847949,-500.0,0.0002218,2]
[312029939,1705561847958,-500.0,0.0002218,2]
[312029940,1705561847967,-500.0,0.0002218,2]
[312029941,1705561847976,-500.0,0.0002218,2]
[312029942,1705561847985,-500.0,0.0002218,2]
[312029943,1705561847994,-500.0,0.0002218,2]
[312029944,1705561848002,-1087.4,0.0002218,2]
[312029945,1705561848011,-2495.87,0.0002218,2]
[312029946,1705561848020,-154.63,0.0002218,2]
[312029947,1705561848030,-1103.71,0.0002218,2]
[312029948,1705561848039,-500.0,0.0002218,2]
[312029949,1705561848048,-500.0,0.0002218,2]
[312029950,1705561848057,-500.0,0.0002218,2]
[312029951,1705561848066,-690.15,0.0002218,2]
[312029952,1705561848075,-1323.97,0.0002218,2]
[312029953,1705561848084,-500.0,0.0002218,2]
[312029954,1705561848093,-641.53,0.0002218,2]
[312029955,1705561848102,-628.76,0.0002218,2]
[312029956,1705561848110,-500.0,0.0002218,2]
[312029957,1705561848119,-500.0,0.0002218,2]
[312029958,1705561848128,-500.0,0.0002218,2]
[312029959,1705561848137,-500.0,0.0002218,2]
[312029960,1705561848146,-500.0,0.0002218,2]
[312029961,1705561848155,-1397.21,0.0002218,2]
[312029962,1705561848164,-500.0,0.0002218,2]
[312029963,1705561848174,-1122.73,0.0002218,2]
[312029964,1705561848183,-500.0,0.0002218,2]
[312029965,1705561848192,-500.0,0.0002218,2]
[312029966,1705561848201,-500.0,0.0002218,2]
[312029967,1705561848210,-920.73,0.0002218,2]
[312029968,1705561848219,-500.0,0.0002218,2]
[312029969,1705561848228,-635.32,0.0002218,2]
[312029970,1705561848238,-514.66,0.0002218,2]
[312029971,1705561848247,-742.41,0.0002218,2]
[312029972,1705561848256,-500.0,0.0002218,5]
[312029973,1705561848265,-181.04731766,0.0002218,2]
[312029974,1705561848274,-656.47,0.0002218,2]
[312029975,1705561848283,-955.06,0.0002218,2]
[312029976,1705561848292,-842.91,0.0002218,2]
[312029977,1705561848301,-937.9,0.0002218,2]
[312029978,1705561848310,-500.0,0.0002218,2]
[312029979,1705561848319,-496.74088511,0.0002218,2]
[312029980,1705561848792,-422.12160871,0.00022166,2]
[312029981,1705561848802,-151.11854752,0.00022177,2]
[312029982,1705561848812,-1184.91911489,0.0002218,2]
[312029983,1705561848821,-374.53466702,0.0002218,2]
[312029984,1705561848842,-125.46533298,0.0002218,2]
[312029985,1705561848851,-153.28374749,0.0002218,2]
[312029986,1705561848863,-346.71625251,0.0002218,2]
[312029987,1705561848873,-1102.58,0.0002218,2]
[312029988,1705561848882,-501.4,0.0002218,2]
[312029989,1705561848891,-18939.93766834,0.00022181,2]
[312029990,1705561848908,-2012.90060727,0.00022181,2]
[312029991,1705561848919,-481.80436268,0.00022181,2]
[312029992,1705561848930,-632.7503834,0.00022181,2]
[312029993,1705561849149,-282.80136825,0.0002,2]
[312029994,1705561849158,-500.0,0.00022179,2]
[312029995,1705561849168,-101.01408614,0.00022181,2]
[312029996,1705561849179,-333.70314074,0.00022181,2]
[312029997,1705561849262,-1226.43663959,0.00022181,2]
[312029998,1705561849274,-1109.59771516,0.00022181,2]
[312029999,1705561849285,-314.8929868,0.00022181,2]
[312030000,1705561900386,568.26,0.00017765,2]
[312030001,1705561956430,500.0,0.000185,2]
[312030002,1705561962979,1599.4944361,0.00014212,2]
[312030003,1705561984998,983.15303054,0.00014212,2]
[312030004,1705562007993,6084.77228021,0.00014212,2]
[312030005,1705562024003,5735.73601077,0.00014212,2]
[312030006,1705562075045,7425.67913388,0.00014212,2]
[312030007,1705562091058,2624.82385225,0.00014212,2]
[312030008,1705562179160,-457.67644344,0.00019497,2]
[312030009,1705562179182,-155.0,0.00019497,2]
[312030010,1705562179205,-2925.32355656,0.00019498,2]
[312030011,1705562449541,539.84,0.00018513,2]
[312030012,1705562474761,-1000.0,0.00035267,30]
[312030013,1705562474783,-1029.0,0.00035267,120]
[312030014,1705562474813,-500.0,0.00035267,120]
[312030015,1705562474834,-1259.67102574,0.00035267,120]
[312030016,1705562474856,-634.29742145,0.00035267,90]
[312030017,1705562474879,-2627.73240796,0.00035267,120]
[312030018,1705562474902,-458.60302804,0.00035267,30]
[312030019,1705562474925,-157.88711934,0.00035267,30]
[312030020,1705562474948,-846.60757527,0.00035267,30]
[312030021,1705562474970,-166.28656785,0.00035267,30]
[312030022,1705562474992,-164.18894959,0.00035267,120]
[312030023,1705562475015,-188.85764848,0.00035267,120]
[312030024,1705562475037,-1362.69716287,0.00035267,120]
[312030025,1705562475062,-373.68356373,0.00035267,120]
[312030026,1705562475083,-395.47529627,0.00035267,120]
[312030027,1705562475105,-454.89916491,0.00035267,30]
[312030028,1705562475126,-239.22663333,0.00035267,120]
[312030029,1705562475150,-650.42358505,0.00035267,30]
[312030030,1705562475172,-403.48948147,0.00035267,120]
[312030031,1705562475193,-217.4300675,0.00035267,120]
[312030032,1705562475215,-477.40231189,0.00035267,120]
[312030033,1705562475237,-225.33609596,0.00035267,120]
[312030034,1705562475260,-535.73823558,0.00035267,30]
[312030035,1705562475282,-676.60907088,0.00035267,120]
[312030036,1705562475304,-162.42106799,0.00035267,30]
[312030037,1705562475328,-679.24617094,0.00035267,30]
[312030038,1705562475350,-2059.75756085,0.00035267,30]
[312030039,1705562475372,-150.64137352,0.00035267,30]
[312030040,1705562475394,-281.05907294,0.00035267,120]
[312030041,1705562475416,-1087.0274845,0.00035267,120]
[312030042,1705562475440,-1474.36428153,0.00035267,30]
[312030043,1705562475461,-194.9650234,0.00035267,120]
[312030044,1705562475485,-3722.0,0.00035267,120]
[312030045,1705562475507,-179.91308211,0.00035267,30]
[312030046,1705562475529,-1087.58464987,0.00035267,30]
[312030047,1705562475551,-4005.999999,0.00035267,120]
[312030048,1705562475574,-4325.92502832,0.00035267,120]
[312030049,1705562475597,-1019.16,0.00035267,30]
[312030050,1705562475620,-311.55948596,0.00035267,120]
[312030051,1705562475643,-1204.65625666,0.00035267,120]
[312030052,1705562475666,-20000.0,0.00035267,30]
[312030053,1705562475689,-234.36716162,0.00035267,30]
[312030054,1705562475711,-283.39529926,0.00035267,30]
[312030055,1705562475733,-226.37048767,0.00035267,30]
[312030056,1705562475759,-153.86706911,0.00035267,31]
[312030057,1705562475782,-192.23437477,0.00035267,30]
[312030058,1705562475803,-191.16704267,0.00035267,120]
[312030059,1705562475828,-162.43101485,0.00035267,30]
[312030060,1705562475851,-523.96552445,0.00035267,120]
[312030061,1705562475874,-165.19320588,0.00035267,30]
[312030062,1705562475897,-159.97510571,0.00035267,30]
[312030063,1705562475919,-155.04501003,0.00035267,30]
[312030064,1705562475941,-180.57505563,0.00035267,30]
[312030065,1705562475962,-159.07356797,0.00035267,120]
[312030066,1705562475985,-245.25932708,0.00035267,30]
[312030067,1705562476013,-500.0,0.00035267,120]
[312030068,1705562476050,-532.209064,0.00035267,30]
[312030069,1705562476097,-502.66307811,0.00035267,30]
[312030070,1705562476139,-173.23618947,0.00035267,120]
[312030071,1705562476191,-1970.502977,0.00035267,30]
[312030072,1705562476241,-1891.445896,0.00035267,30]
[312030073,1705562476281,-250.0,0.00035267,30]
[312030074,1705562476311,-250.0,0.00035267,30]
[312030075,1705562476343,-250.0,0.00035267,30]
[312030076,1705562476366,-250.0,0.00035267,30]
[312030077,1705562476396,-305.638467,0.00035267,30]
[312030078,1705562476418,-1000.0,0.00035267,30]
[312030079,1705562476440,-1000.0,0.00035267,30]
[312030080,1705562476464,-1000.0,0.00035267,30]
[312030081,1705562476486,-1000.0,0.00035267,30]
[312030082,1705562476509,-1861.248056,0.00035267,30]
[312030083,1705562480198,-2052.0,0.00028361,30]
[312030084,1705562480228,-300.0,0.00029,30]
[312030085,1705562480252,-2052.0,0.00029854,30]
[312030086,1705562480276,-500.0,0.0003,30]
[312030087,1705562480300,-300.0,0.0003,31]
[312030088,1705562480323,-24800.0,0.0003,30]
[312030089,1705562480354,-151.0,0.00030847,120]
[312030090,1705562480378,-300.0,0.00031,32]
[312030091,1705562480402,-2052.0,0.00031425,30]
[312030092,1705562480433,-151.0,0.00031477,30]
[312030093,1705562480468,-300.0,0.00033,34]
[312030094,1705562480491,-149472.8980925,0.00033,30]
[312030095,1705562480515,-2052.0,0.00033079,30]
[312030096,1705562480540,-1223.81950152,0.000334,60]
[312030097,1705562480564,-188.0,0.0003346,36]
[312030098,1705562480590,-1000.0,0.000338,30]
[312030099,1705562480617,-300.0,0.00034,35]
[312030100,1705562480640,-2502.4918586,0.00034,30]
[312030101,1705562480673,-238.99199432,0.00034405,30]
[312030102,1705562480696,-373.01562759,0.000345,120]
[312030103,1705562480720,-399.40479443,0.0003468,30]
[312030104,1705562480744,-2052.0,0.0003482,30]
[312030105,1705562480771,-600.0,0.00035,36]
[312030106,1705562480795,-1406.7204011,0.00035,30]
[312030107,1705562480816,-2996.85969016,0.00035,30]
[312030108,1705562480837,-254.9110782,0.00035,30]
[312030109,1705562480859,-2404.50751189,0.00035,30]
[312030110,1705562480884,-150.0,0.00035067,120]
[312030111,1705562480919,-182.30086815,0.000355,30]
[312030112,1705562480943,-1050.0,0.00035616,32]
[312030113,1705562480965,-1200.0,0.00035616,37]
[312030114,1705562480988,-1350.0,0.00035616,42]
[312030115,1705562481010,-1483.18086796,0.00035616,47]
[312030116,1705562481035,-150.0,0.00035763,120]
[312030117,1705562481057,-3064.21141219,0.00035888,30]
[312030118,1705562481088,-2000.0,0.00036,120]
[312030119,1705562481111,-373.533619,0.00036,30]
[312030120,1705562481136,-150.71647969,0.00036256,30]
[312030121,1705562481163,-150.0,0.00036342,120]
[312030122,1705562481186,-150.0,0.00036438,31]
[312030123,1705562481212,-150.0,0.00036438,41]
[312030124,1705562481235,-150.0,0.00036438,50]
[312030125,1705562481260,-150.0,0.00036438,60]
[312030126,1705562481498,-150.0,0.00036438,70]
[312030127,1705562481521,-150.0,0.00036438,80]
[312030128,1705562481544,-150.0,0.00036438,90]
[312030129,1705562481568,-2052.0,0.00036653,30]
[312030130,1705562481592,-150.71647969,0.00036756,30]
[312030131,1705562481617,-600.0,0.00037,38]
[312030132,1705562481640,-150.0,0.00037,30]
[312030133,1705562481665,-150.0,0.00037047,120]
[312030134,1705562481688,-150.0,0.000372,30]
[312030135,1705562481712,-150.0,0.000374,30]
[312030136,1705562481739,-150.0,0.00037538,120]
[312030137,1705562481767,-211.90163941,0.000376,30]
[312030138,1705562481795,-150.71647969,0.00037756,30]
[312030139,1705562481826,-250.0,0.00037789,120]
[312030140,1705562481853,-195.56578892,0.000378,30]
[312030141,1705562481880,-263.32694042,0.000378,31]
[312030142,1705562481909,-150.5,0.0003797,120]
[312030143,1705562481937,-150.5,0.0003797,120]
[312030144,1705562481963,-241.0,0.0003797,120]
[312030145,1705562481989,-150.5,0.0003797,120]
[312030146,1705562482014,-246.0,0.0003797,120]
[312030147,1705562482043,-150.5,0.0003797,120]
[312030148,1705562482086,-278.0,0.0003797,120]
[312030149,1705562482110,-150.5,0.0003797,120]
[312030150,1705562482134,-153.0,0.0003797,120]
[312030151,1705562482158,-241.0,0.0003797,120]
[312030152,1705562482180,-150.5,0.0003797,120]
[312030153,1705562482202,-246.0,0.0003797,120]
[312030154,1705562482223,-278.0,0.0003797,120]
[312030155,1705562482245,-150.5,0.0003797,120]
[312030156,1705562482267,-391.0,0.0003797,120]
[312030157,1705562482293,-153.0,0.0003797,120]
[312030158,1705562482320,-391.0,0.0003797,120]
[312030159,1705562482346,-150.5,0.0003797,120]
[312030160,1705562482369,-150.5,0.0003797,120]
[312030161,1705562482392,-158.0,0.0003797,120]
[312030162,1705562482415,-240.0,0.0003797,30]
[312030163,1705562482438,-150.5,0.0003797,120]
[312030164,1705562482461,-158.0,0.0003797,120]
[312030165,1705562482484,-240.0,0.0003797,30]
[312030166,1705562482507,-150.5,0.0003797,120]
[312030167,1705562482530,-195.22,0.0003797,120]
[312030168,1705562482554,-281.44,0.0003797,120]
[312030169,1705562482580,-1587.0,0.0003797,120]
[312030170,1705562482602,-1587.0,0.0003797,120]
[312030171,1705562482625,-150.5,0.0003797,120]
[312030172,1705562482646,-150.5,0.0003797,120]
[312030173,1705562482670,-150.5,0.0003798,120]
[312030174,1705562482693,-150.5,0.0003798,120]
[312030175,1705562482715,-241.0,0.0003798,120]
[312030176,1705562482737,-150.5,0.0003798,120]
[312030177,1705562482759,-246.0,0.0003798,120]
[312030178,1705562482782,-150.5,0.0003798,120]
[312030179,1705562482804,-150.5,0.0003798,120]
[312030180,1705562482828,-278.0,0.0003798,120]
[312030181,1705562482850,-150.5,0.0003798,120]
[312030182,1705562482871,-153.0,0.0003798,120]
[312030183,1705562482892,-241.0,0.0003798,120]
[312030184,1705562482913,-150.5,0.0003798,120]
[312030185,1705562482935,-246.0,0.0003798,120]
[312030186,1705562482956,-278.0,0.0003798,120]
[312030187,1705562482978,-150.5,0.0003798,120]
[312030188,1705562482999,-391.0,0.0003798,120]
[312030189,1705562483020,-150.5,0.0003798,120]
[312030190,1705562483043,-153.0,0.0003798,120]
[312030191,1705562483066,-241.0,0.0003798,120]
[312030192,1705562483089,-246.0,0.0003798,120]
[312030193,1705562483111,-278.0,0.0003798,120]
[312030194,1705562483134,-391.0,0.0003798,120]
[312030195,1705562483156,-153.0,0.0003798,120]
[312030196,1705562483180,-391.0,0.0003798,120]
[312030197,1705562483202,-150.5,0.0003798,120]
[312030198,1705562483224,-150.5,0.0003798,120]
[312030199,1705562483245,-158.0,0.0003798,120]
[312030200,1705562483267,-240.0,0.0003798,30]
[312030201,1705562483290,-235.6,0.0003798,120]
[312030202,1705562483315,-150.5,0.0003798,120]
[312030203,1705562483338,-158.0,0.0003798,120]
[312030204,1705562483360,-240.0,0.0003798,30]
[312030205,1705562483382,-158.0,0.0003798,120]
[312030206,1705562483403,-240.0,0.0003798,30]
[312030207,1705562483427,-166.7,0.0003798,120]
[312030208,1705562483448,-245.65,0.0003798,30]
[312030209,1705562483470,-150.5,0.0003798,120]
[312030210,1705562483492,-154.71,0.0003798,120]
[312030211,1705562483512,-279.04,0.0003798,120]
[312030212,1705562483534,-251.26,0.0003798,120]
[312030213,1705562483555,-241.94,0.0003798,120]
[312030214,1705562483580,-150.74,0.0003798,120]
[312030215,1705562483602,-1587.0,0.0003798,120]
[312030216,1705562483625,-394.85,0.0003798,120]
[312030217,1705562483650,-192.01,0.0003798,120]
[312030218,1705562483673,-1587.0,0.0003798,120]
[312030219,1705562483695,-1587.0,0.0003798,120]
[312030220,1705562483718,-1589.92,0.0003798,120]
[312030221,1705562483741,-150.5,0.0003798,120]
[312030222,1705562483766,-150.5,0.0003798,120]
[312030223,1705562483792,-150.5,0.0003799,120]
[312030224,1705562483816,-212.45,0.0003799,120]
[312030225,1705562483839,-150.5,0.0003799,120]
[312030226,1705562483862,-241.0,0.0003799,120]
[312030227,1705562483884,-204.84,0.0003799,120]
[312030228,1705562483907,-150.5,0.0003799,120]
[312030229,1705562483929,-150.5,0.0003799,120]
[312030230,1705562484121,-150.5,0.0003799,120]
[312030231,1705562484146,-150.5,0.0003799,120]
[312030232,1705562484170,-246.0,0.0003799,120]
[312030233,1705562484191,-278.0,0.0003799,120]
[312030234,1705562484212,-150.5,0.0003799,120]
[312030235,1705562484233,-153.0,0.0003799,120]
[312030236,1705562484255,-241.0,0.0003799,120]
[312030237,1705562484276,-150.5,0.0003799,120]
[312030238,1705562484297,-246.0,0.0003799,120]
[312030239,1705562484321,-278.0,0.0003799,120]
[312030240,1705562484343,-150.5,0.0003799,120]
[312030241,1705562484364,-391.0,0.0003799,120]
[312030242,1705562484385,-150.5,0.0003799,120]
[312030243,1705562484407,-153.0,0.0003799,120]
[312030244,1705562484428,-241.0,0.0003799,120]
[312030245,1705562484451,-246.0,0.0003799,120]
[312030246,1705562484473,-278.0,0.0003799,120]
[312030247,1705562484495,-150.5,0.0003799,120]
[312030248,1705562484516,-391.0,0.0003799,120]
[312030249,1705562484537,-153.0,0.0003799,120]
[312030250,1705562484560,-241.0,0.0003799,120]
[312030251,1705562484582,-246.0,0.0003799,120]
[312030252,1705562484604,-278.0,0.0003799,120]
[312030253,1705562484625,-153.0,0.0003799,120]
[312030254,1705562484647,-391.0,0.0003799,120]
[312030255,1705562484669,-391.0,0.0003799,120]
[312030256,1705562484691,-150.5,0.0003799,120]
[312030257,1705562484713,-150.5,0.0003799,120]
[312030258,1705562484735,-158.0,0.0003799,120]
[312030259,1705562484757,-150.5,0.0003799,120]
[312030260,1705562484779,-240.0,0.0003799,30]
[312030261,1705562484800,-150.5,0.0003799,120]
[312030262,1705562484823,-158.0,0.0003799,120]
[312030263,1705562484845,-240.0,0.0003799,30]
[312030264,1705562484867,-166.49,0.0003799,120]
[312030265,1705562484889,-158.0,0.0003799,120]
[312030266,1705562484911,-240.0,0.0003799,30]
[312030267,1705562484933,-158.0,0.0003799,120]
[312030268,1705562484955,-240.0,0.0003799,30]
[312030269,1705562484976,-150.5,0.0003799,120]
[312030270,1705562484998,-257.31,0.0003799,120]
[312030271,1705562485019,-289.97,0.0003799,120]
[312030272,1705562485044,-1587.0,0.0003799,120]
[312030273,1705562485066,-216.63,0.0003799,120]
[312030274,1705562485088,-244.27,0.0003799,120]
[312030275,1705562485111,-1587.0,0.0003799,120]
[312030276,1705562485133,-1587.0,0.0003799,120]
[312030277,1705562485156,-1587.0,0.0003799,120]
[312030278,1705562485180,-150.5,0.0003799,120]
[312030279,1705562485201,-150.5,0.0003799,120]
[312030280,1705562485223,-283.63,0.0003799,120]
[312030281,1705562485250,-3104.74495885,0.00038,30]
[312030282,1705562485272,-711.05453182,0.00038,30]
[312030283,1705562485294,-600.0,0.00038,39]
[312030284,1705562485317,-500.0,0.00038,30]
[312030285,1705562485340,-500.0,0.00038,30]
[312030286,1705562485362,-500.0,0.00038,30]
[312030287,1705562485383,-500.0,0.00038,30]
[312030288,1705562485405,-519.87,0.00038,30]
[312030289,1705562485427,-430.36,0.00038,30]
[312030290,1705562485449,-200.0,0.00038,30]
[312030291,1705562485473,-1754.30630682,0.00038356,30]
[312030292,1705562485501,-2052.0,0.00038582,30]
[312030293,1705562485524,-150.71647969,0.00038756,30]
[312030294,1705562485547,-807.83223508,0.000388,30]
[312030295,1705562485573,-1444.992223,0.000388,37]
[312030296,1705562485596,-1000.0,0.000389,37]
[312030297,1705562485621,-322.38306444,0.00039,40]
[312030298,1705562485644,-600.0,0.00039,40]
[312030299,1705562485667,-3282.66724508,0.00039,120]
[312030300,1705562485693,-1000.0,0.00039,37]
[312030301,1705562485715,-1000.0,0.000391,38]
[312030302,1705562485739,-150.0,0.0003911,120]
[312030303,1705562485762,-1000.0,0.000392,38]
[312030304,1705562485785,-345.18046401,0.0003922,30]
[312030305,1705562485807,-156.29526719,0.00039234,31]
[312030306,1705562485830,-1000.0,0.000393,39]
[312030307,1705562485854,-1208.0,0.00039391,30]
[312030308,1705562485877,-1000.0,0.000394,39]
[312030309,1705562485899,-1000.0,0.000395,39]
[312030310,1705562485923,-1000.0,0.000396,40]
[312030311,1705562485946,-1000.0,0.000397,40]
[312030312,1705562485968,-150.7164797,0.00039756,30]
[312030313,1705562485991,-1000.0,0.000398,41]
[312030314,1705562486013,-853.29154165,0.000399,30]
[312030315,1705562486035,-1000.0,0.000399,41]
[312030316,1705562486058,-1016.34393663,0.00039998,31]
[312030317,1705562486261,-158.58175541,0.0004,30]
[312030318,1705562486285,-3229.88772542,0.0004,30]
[312030319,1705562486308,-763.49852338,0.0004,30]
[312030320,1705562486331,-584.92632616,0.0004,30]
[312030321,1705562486352,-347.62969429,0.0004,30]
[312030322,1705562486375,-767.07917389,0.0004,120]
[312030323,1705562486397,-2000.0,0.0004,120]
[312030324,1705562486421,-209.52128775,0.0004,30]
[312030325,1705562486443,-350.0,0.0004,120]
[312030326,1705562486466,-400.0,0.0004,120]
[312030327,1705562486489,-600.0,0.0004,41]
[312030328,1705562486512,-1168.97417004,0.0004,120]
[312030329,1705562486535,-1020.11279616,0.0004,30]
[312030330,1705562486574,-205.39260875,0.0004,30]
[312030331,1705562486597,-297.99413396,0.0004,30]
[312030332,1705562486620,-320.08516786,0.0004,30]
[312030333,1705562486823,-1239.18840826,0.0004,30]
[312030334,1705562486848,-1098.31069267,0.0004,120]
[312030335,1705562486875,-4049.34261351,0.0004,30]
[312030336,1705562486898,-1015.86278578,0.0004,30]
[312030337,1705562486921,-9172.86882159,0.0004,30]
[312030338,1705562486943,-1000.0,0.0004,30]
[312030339,1705562486966,-250000.0,0.0004,30]
[312030340,1705562486988,-4002.45830868,0.0004,60]
[312030341,1705562487010,-29523.13,0.0004,30]
[312030342,1705562487033,-155.0,0.0004,30]
[312030343,1705562487055,-200.0,0.0004,30]
[312030344,1705562487085,-300.0,0.0004,30]
[312030345,1705562487108,-400.06944698,0.0004,30]
[312030346,1705562487130,-1309.76535604,0.0004,30]
[312030347,1705562487153,-238.177,0.0004,120]
[312030348,1705562487182,-1175.57558096,0.0004,30]
[312030349,1705562487205,-1000.0,0.0004,30]
[312030350,1705562487226,-1000.0,0.0004,41]
[312030351,1705562487248,-200.0,0.0004,30]
[312030352,1705562487271,-150.0,0.00040092,120]
[312030353,1705562487298,-500.0,0.0004052,30]
[312030354,1705562487323,-500.0,0.00040547,30]
[312030355,1705562487345,-500.0,0.00040575,30]
[312030356,1705562487367,-500.0,0.00040602,30]
[312030357,1705562487391,-2052.0,0.00040613,30]
[312030358,1705562487414,-500.0,0.0004063,30]
[312030359,1705562487439,-500.0,0.00040657,30]
[312030360,1705562487462,-555.51134794,0.00040684,30]
[312030361,1705562487485,-500.0,0.0004089,30]
[312030362,1705562487506,-400.0,0.00040932,120]
[312030363,1705562487528,-350.0,0.00040986,120]
[312030364,1705562487550,-500.0,0.00040987,31]
[312030365,1705562487574,-500.0,0.00040987,30]
[312030366,1705562487599,-600.0,0.00041,42]
[312030367,1705562487622,-1000.0,0.00041,33]
[312030368,1705562487645,-11307.0,0.00041,30]
[312030369,1705562487668,-1000.0,0.00041014,30]
[312030370,1705562487691,-478.92768217,0.00041042,100]
[312030371,1705562487714,-510.0,0.00041095,120]
[312030372,1705562487736,-1000.0,0.00041095,30]
[312030373,1705562487763,-1000.0,0.00041095,30]
[312030374,1705562487786,-1000.0,0.00041095,30]
[312030375,1705562487809,-1000.0,0.00041095,30]
[312030376,1705562487835,-611.24843845,0.00041095,30]
[312030377,1705562487858,-1430.03329713,0.00041095,120]
[312030378,1705562487883,-500.0,0.00041095,30]
[312030379,1705562487908,-500.0,0.00041095,30]
[312030380,1705562487930,-500.0,0.00041095,30]
[312030381,1705562487953,-500.0,0.00041095,30]
[312030382,1705562487975,-500.0,0.00041095,30]
[312030383,1705562488005,-626.31822264,0.00041095,30]
[312030384,1705562488034,-150.0,0.00041121,30]
[312030385,1705562488060,-150.0,0.00041143,30]
[312030386,1705562488089,-150.0,0.00041218,120]
[312030387,1705562488112,-150.0,0.0004125,30]